[Event "Meltwater Champions Chess Tour 2022: Chessable Masters | Prelims"]
[White "Anton Guijarro, David"]
[Black "Carlsen, Magnus"]
[WhiteFideId "2285525"]
[BlackFideId "1503014"]
[WhiteElo "2633"]
[BlackElo "2847"]
[Result "1/2-1/2"]
[Round "11"]
[TimeControl "900+10"]
[Date "2022.05.21"]
[WhiteClock "0:00:56"]
[BlackClock "0:02:01"]

1. e4 {[%clk 0:15:20]}  c5 {[%clk 0:15:20]} 2. Nf3 {[%clk 0:15:27]}  Nc6 {[%clk 0:15:28]} 3. Bb5 {[%clk 0:15:29]}  e6 {[%clk 0:15:08]} 4. Bxc6 {[%clk 0:15:24]}  bxc6 {[%clk 0:15:15]} 5. d3 {[%clk 0:15:30]}  Qc7 {[%clk 0:15:13]} 6. O-O {[%clk 0:15:10]}  e5 {[%clk 0:13:56]} 7. c3 {[%clk 0:11:12]}  Nf6 {[%clk 0:13:18]} 8. Bg5 {[%clk 0:10:40]}  Be7 {[%clk 0:11:22]} 9. d4 {[%clk 0:10:45]}  cxd4 {[%clk 0:09:32]} 10. cxd4 {[%clk 0:10:52]}  d6 {[%clk 0:09:41]} 11. dxe5 {[%clk 0:10:46]}  dxe5 {[%clk 0:09:48]} 12. Qc2 {[%clk 0:10:07]}  O-O {[%clk 0:09:54]} 13. Nbd2 {[%clk 0:10:03]}  h6 {[%clk 0:08:12]} 14. Be3 {[%clk 0:09:33]}  Be6 {[%clk 0:08:19]} 15. Rfc1 {[%clk 0:08:38]}  Rfc8 {[%clk 0:08:20]} 16. Bc5 {[%clk 0:08:27]}  Bxc5 {[%clk 0:08:29]} 17. Qxc5 {[%clk 0:08:36]}  Nd7 {[%clk 0:08:39]} 18. Qc3 {[%clk 0:08:26]}  c5 {[%clk 0:07:31]} 19. Nc4 {[%clk 0:07:57]}  f6 {[%clk 0:07:39]} 20. Nh4 {[%clk 0:07:23]}  Nb6 {[%clk 0:07:35]} 21. Ne3 {[%clk 0:07:22]}  c4 {[%clk 0:07:40]} 22. Nhf5 {[%clk 0:04:07]}  Kh7 {[%clk 0:07:44]} 23. Qa3 {[%clk 0:03:20]}  Rd8 {[%clk 0:07:36]} 24. Rd1 {[%clk 0:02:56]}  Bxf5 {[%clk 0:02:43]} 25. Nxf5 {[%clk 0:02:54]}  Rd7 {[%clk 0:02:48]} 26. Qf3 {[%clk 0:01:47]}  Rad8 {[%clk 0:02:21]} 27. Rxd7 {[%clk 0:01:40]}  Qxd7 {[%clk 0:02:24]} 28. h4 {[%clk 0:01:47]}  Qd2 {[%clk 0:02:21]} 29. Qa3 {[%clk 0:01:13]}  Rd7 {[%clk 0:02:09]} 30. h5 {[%clk 0:01:04]}  Qe2 {[%clk 0:02:10]} 31. Ng3 {[%clk 0:00:58]}  Qd3 {[%clk 0:01:22]} 32. Qf8 {[%clk 0:00:50]}  Qc2 {[%clk 0:01:21]} 33. Qe8 {[%clk 0:00:43]}  Qxb2 {[%clk 0:01:28]} 34. Qg6+ {[%clk 0:00:48]}  Kg8 {[%clk 0:01:36]} 35. Qe8+ {[%clk 0:00:55]}  Kh7 {[%clk 0:01:45]} 36. Qg6+ {[%clk 0:00:48]}  Kg8 {[%clk 0:01:53]} 37. Qe8+ {[%clk 0:00:56]}  Kh7 {[%clk 0:02:01]} 1/2-1/2


[Site "http://www.chessbomb.com"]

[Event "Meltwater Champions Chess Tour 2022: Chessable Masters | Prelims"]
[White "Ding, Liren"]
[Black "Jones, Gawain C B"]
[WhiteFideId "8603677"]
[BlackFideId "409561"]
[WhiteElo "2836"]
[BlackElo "2630"]
[Result "1-0"]
[Round "11"]
[TimeControl "900+10"]
[Date "2022.05.21"]
[WhiteClock "0:03:08"]
[BlackClock "0:01:22"]

1. d4 {[%clk 0:15:20]}  Nf6 {[%clk 0:15:20]} 2. c4 {[%clk 0:15:29]}  g6 {[%clk 0:15:28]} 3. Nc3 {[%clk 0:15:38]}  Bg7 {[%clk 0:15:38]} 4. e4 {[%clk 0:15:47]}  d6 {[%clk 0:15:47]} 5. Be2 {[%clk 0:15:50]}  O-O {[%clk 0:15:55]} 6. h4 {[%clk 0:15:59]}  c5 {[%clk 0:15:49]} 7. d5 {[%clk 0:16:07]}  e6 {[%clk 0:15:57]} 8. h5 {[%clk 0:16:15]}  exd5 {[%clk 0:16:02]} 9. exd5 {[%clk 0:16:05]}  Re8 {[%clk 0:16:09]} 10. h6 {[%clk 0:16:14]}  Bh8 {[%clk 0:16:18]} 11. Bg5 {[%clk 0:16:17]}  Qa5 {[%clk 0:16:00]} 12. Bd2 {[%clk 0:15:24]}  Qb6 {[%clk 0:15:09]} 13. b3 {[%clk 0:15:30]}  Ne4 {[%clk 0:15:03]} 14. Nxe4 {[%clk 0:15:38]}  Rxe4 {[%clk 0:15:11]} 15. Rc1 {[%clk 0:15:27]}  Nd7 {[%clk 0:14:15]} 16. Nf3 {[%clk 0:14:26]}  Ne5 {[%clk 0:13:56]} 17. Ng5 {[%clk 0:13:36]}  Nd3+ {[%clk 0:12:25]} 18. Kf1 {[%clk 0:13:44]}  Nb2 {[%clk 0:12:16]} 19. Qc2 {[%clk 0:12:34]}  Rxe2 {[%clk 0:12:02]} 20. Kxe2 {[%clk 0:12:45]}  Bf5 {[%clk 0:11:30]} 21. Ne4 {[%clk 0:12:52]}  Re8 {[%clk 0:10:49]} 22. f3 {[%clk 0:12:57]}  Qd8 {[%clk 0:10:28]} 23. Rce1 {[%clk 0:10:41]}  Rxe4+ {[%clk 0:07:01]} 24. fxe4 {[%clk 0:10:51]}  Bg4+ {[%clk 0:07:10]} 25. Kf1 {[%clk 0:09:36]}  Be5 {[%clk 0:04:34]} 26. Be3 {[%clk 0:09:31]}  f5 {[%clk 0:04:39]} 27. exf5 {[%clk 0:05:05]}  Bxf5 {[%clk 0:04:28]} 28. Qd2 {[%clk 0:05:14]}  Nd3 {[%clk 0:04:05]} 29. Bg5 {[%clk 0:04:17]}  Qf8 {[%clk 0:03:53]} 30. Rxe5 {[%clk 0:04:22]}  dxe5 {[%clk 0:03:36]} 31. Kg1 {[%clk 0:04:31]}  Qd6 {[%clk 0:03:11]} 32. g4 {[%clk 0:03:43]}  e4 {[%clk 0:01:46]} 33. gxf5 {[%clk 0:03:38]}  Qg3+ {[%clk 0:01:51]} 34. Qg2 {[%clk 0:03:47]}  Qe5 {[%clk 0:01:59]} 35. Rh4 {[%clk 0:03:24]}  Qd4+ {[%clk 0:01:38]} 36. Kh1 {[%clk 0:03:02]}  Qa1+ {[%clk 0:01:34]} 37. Qg1 {[%clk 0:03:04]}  Qxa2 {[%clk 0:01:38]} 38. Rh2 {[%clk 0:02:35]}  Qxb3 {[%clk 0:01:41]} 39. fxg6 {[%clk 0:02:44]}  Ne5 {[%clk 0:01:32]} 40. gxh7+ {[%clk 0:02:53]}  Kxh7 {[%clk 0:01:37]} 41. Be3 {[%clk 0:03:01]}  Ng6 {[%clk 0:01:22]} 42. Rg2 {[%clk 0:03:08]} 1-0


[Site "http://www.chessbomb.com"]

[Event "Meltwater Champions Chess Tour 2022: Chessable Masters | Prelims"]
[White "Hansen, Eric"]
[Black "Harikrishna, Pentala"]
[WhiteFideId "2606771"]
[BlackFideId "5007003"]
[WhiteElo "2579"]
[BlackElo "2624"]
[Result "0-1"]
[Round "11"]
[TimeControl "900+10"]
[Date "2022.05.21"]
[WhiteClock "0:00:16"]
[BlackClock "0:00:40"]

1. e4 {[%clk 0:15:20]}  e5 {[%clk 0:15:20]} 2. Nf3 {[%clk 0:15:29]}  Nc6 {[%clk 0:15:28]} 3. Bb5 {[%clk 0:15:38]}  a6 {[%clk 0:15:37]} 4. Ba4 {[%clk 0:15:48]}  Nf6 {[%clk 0:15:45]} 5. d3 {[%clk 0:15:55]}  d6 {[%clk 0:15:32]} 6. Bxc6+ {[%clk 0:15:49]}  bxc6 {[%clk 0:15:40]} 7. O-O {[%clk 0:15:19]}  Be7 {[%clk 0:15:42]} 8. h3 {[%clk 0:15:05]}  O-O {[%clk 0:15:48]} 9. Re1 {[%clk 0:15:14]}  c5 {[%clk 0:15:50]} 10. c3 {[%clk 0:15:19]}  Nd7 {[%clk 0:15:06]} 11. Nbd2 {[%clk 0:15:26]}  Bb7 {[%clk 0:13:59]} 12. Nc4 {[%clk 0:15:23]}  Rb8 {[%clk 0:13:37]} 13. Bd2 {[%clk 0:15:03]}  f5 {[%clk 0:13:38]} 14. b4 {[%clk 0:14:53]}  fxe4 {[%clk 0:13:07]} 15. dxe4 {[%clk 0:15:03]}  Qe8 {[%clk 0:13:14]} 16. Rb1 {[%clk 0:12:17]}  Ba8 {[%clk 0:11:37]} 17. Qe2 {[%clk 0:09:28]}  cxb4 {[%clk 0:11:33]} 18. cxb4 {[%clk 0:09:33]}  Nf6 {[%clk 0:11:12]} 19. Qd3 {[%clk 0:08:34]}  Nh5 {[%clk 0:09:11]} 20. Nh2 {[%clk 0:08:16]}  Qg6 {[%clk 0:09:00]} 21. Ng4 {[%clk 0:08:06]}  Bg5 {[%clk 0:08:30]} 22. Rbc1 {[%clk 0:07:24]}  Bxd2 {[%clk 0:07:39]} 23. Nxd2 {[%clk 0:07:32]}  Nf4 {[%clk 0:07:48]} 24. Qf3 {[%clk 0:07:05]}  h5 {[%clk 0:07:02]} 25. Nh2 {[%clk 0:07:14]}  Rf7 {[%clk 0:06:34]} 26. a3 {[%clk 0:06:55]}  Rbf8 {[%clk 0:06:28]} 27. Ndf1 {[%clk 0:02:56]}  d5 {[%clk 0:05:09]} 28. Rcd1 {[%clk 0:02:51]}  dxe4 {[%clk 0:04:31]} 29. Qg3 {[%clk 0:02:59]}  Qh6 {[%clk 0:03:43]} 30. Ne3 {[%clk 0:03:04]}  Nd3 {[%clk 0:03:29]} 31. h4 {[%clk 0:02:24]}  Nxe1 {[%clk 0:03:14]} 32. Rxe1 {[%clk 0:02:32]}  Rxf2 {[%clk 0:02:37]} 33. Qxe5 {[%clk 0:02:27]}  Rd2 {[%clk 0:01:03]} 34. Nhf1 {[%clk 0:02:26]}  Rd3 {[%clk 0:01:03]} 35. Qxc7 {[%clk 0:01:40]}  Qf6 {[%clk 0:01:06]} 36. Re2 {[%clk 0:00:34]}  Rd1 {[%clk 0:00:48]} 37. Qc4+ {[%clk 0:00:16]}  Bd5 {[%clk 0:00:40]} 0-1


[Site "http://www.chessbomb.com"]

[Event "Meltwater Champions Chess Tour 2022: Chessable Masters | Prelims"]
[White "Mamedyarov, Shakhriyar"]
[Black "Praggnanandhaa, R"]
[WhiteFideId "13401319"]
[BlackFideId "25059530"]
[WhiteElo "2699"]
[BlackElo "1927"]
[Result "1-0"]
[Round "11"]
[TimeControl "900+10"]
[Date "2022.05.21"]
[WhiteClock "0:01:08"]
[BlackClock "0:00:35"]

1. d4 {[%clk 0:15:20]}  Nf6 {[%clk 0:15:20]} 2. c4 {[%clk 0:15:28]}  e6 {[%clk 0:15:29]} 3. Nf3 {[%clk 0:15:37]}  d5 {[%clk 0:15:38]} 4. Nc3 {[%clk 0:15:45]}  c5 {[%clk 0:15:46]} 5. cxd5 {[%clk 0:15:51]}  Nxd5 {[%clk 0:15:55]} 6. e4 {[%clk 0:16:00]}  Nxc3 {[%clk 0:16:04]} 7. bxc3 {[%clk 0:16:10]}  cxd4 {[%clk 0:16:14]} 8. cxd4 {[%clk 0:16:19]}  Bb4+ {[%clk 0:16:23]} 9. Bd2 {[%clk 0:16:29]}  Bxd2+ {[%clk 0:16:33]} 10. Qxd2 {[%clk 0:16:39]}  O-O {[%clk 0:16:43]} 11. Bc4 {[%clk 0:16:44]}  Nd7 {[%clk 0:16:51]} 12. O-O {[%clk 0:16:53]}  b6 {[%clk 0:17:00]} 13. Rfe1 {[%clk 0:17:01]}  Bb7 {[%clk 0:17:09]} 14. Rad1 {[%clk 0:17:09]}  Rc8 {[%clk 0:17:18]} 15. Bb3 {[%clk 0:17:13]}  Re8 {[%clk 0:17:27]} 16. d5 {[%clk 0:17:19]}  exd5 {[%clk 0:17:35]} 17. Nd4 {[%clk 0:17:23]}  Rc5 {[%clk 0:10:59]} 18. f3 {[%clk 0:17:00]}  g6 {[%clk 0:06:59]} 19. Nc2 {[%clk 0:16:39]}  Nf6 {[%clk 0:05:15]} 20. e5 {[%clk 0:16:01]}  Nd7 {[%clk 0:05:16]} 21. f4 {[%clk 0:16:08]}  Qh4 {[%clk 0:04:08]} 22. Nd4 {[%clk 0:15:26]}  Qg4 {[%clk 0:02:53]} 23. Ba4 {[%clk 0:13:02]}  Re7 {[%clk 0:02:49]} 24. h3 {[%clk 0:11:25]}  Qg3 {[%clk 0:02:26]} 25. Bxd7 {[%clk 0:07:23]}  Rxd7 {[%clk 0:02:34]} 26. f5 {[%clk 0:07:17]}  Re7 {[%clk 0:01:53]} 27. Re3 {[%clk 0:06:34]}  Qg5 {[%clk 0:01:53]} 28. Qf2 {[%clk 0:05:11]}  Rc4 {[%clk 0:01:10]} 29. f6 {[%clk 0:03:55]}  Rxe5 {[%clk 0:01:00]} 30. Rxe5 {[%clk 0:04:00]}  Qxe5 {[%clk 0:01:09]} 31. Re1 {[%clk 0:04:08]}  Qb8 {[%clk 0:01:16]} 32. Qf4 {[%clk 0:03:17]}  Qf8 {[%clk 0:01:18]} 33. Re7 {[%clk 0:03:24]}  Bc6 {[%clk 0:00:37]} 34. Qe3 {[%clk 0:02:34]}  Ba4 {[%clk 0:00:41]} 35. Rxa7 {[%clk 0:01:21]}  Bc2 {[%clk 0:00:35]} 36. Qe5 {[%clk 0:01:05]}  Be4 {[%clk 0:00:26]} 37. Re7 {[%clk 0:00:49]}  Rc8 {[%clk 0:00:32]} 38. Kh2 {[%clk 0:00:50]}  h5 {[%clk 0:00:30]} 39. h4 {[%clk 0:00:41]}  Kh8 {[%clk 0:00:16]} 40. Nb5 {[%clk 0:00:36]}  Qg8 {[%clk 0:00:22]} 41. Nd6 {[%clk 0:00:42]}  Rf8 {[%clk 0:00:31]} 42. Nxf7+ {[%clk 0:00:38]}  Rxf7 {[%clk 0:00:27]} 43. Re8 {[%clk 0:00:47]}  Kh7 {[%clk 0:00:24]} 44. Rxg8 {[%clk 0:00:55]}  Kxg8 {[%clk 0:00:34]} 45. Qe8+ {[%clk 0:01:00]}  Rf8 {[%clk 0:00:35]} 46. Qe6+ {[%clk 0:01:08]} 1-0


[Site "http://www.chessbomb.com"]

[Event "Meltwater Champions Chess Tour 2022: Chessable Masters | Prelims"]
[White "Van Foreest, Jorden"]
[Black "Grandelius, Nils"]
[WhiteFideId "1039784"]
[BlackFideId "1710400"]
[WhiteElo "2645"]
[BlackElo "2652"]
[Result "0-1"]
[Round "11"]
[TimeControl "900+10"]
[Date "2022.05.21"]
[WhiteClock "0:02:06"]
[BlackClock "0:00:48"]

1. Nf3 {[%clk 0:15:20]}  Nf6 {[%clk 0:15:20]} 2. b3 {[%clk 0:14:58]}  d5 {[%clk 0:14:49]} 3. Bb2 {[%clk 0:15:07]}  Bg4 {[%clk 0:14:41]} 4. e3 {[%clk 0:15:11]}  e6 {[%clk 0:14:38]} 5. h3 {[%clk 0:15:17]}  Bh5 {[%clk 0:14:46]} 6. Nc3 {[%clk 0:15:16]}  Nbd7 {[%clk 0:13:53]} 7. g4 {[%clk 0:15:02]}  Bg6 {[%clk 0:14:01]} 8. d3 {[%clk 0:14:47]}  Bd6 {[%clk 0:13:58]} 9. h4 {[%clk 0:14:47]}  Nxg4 {[%clk 0:12:00]} 10. h5 {[%clk 0:14:37]}  Bf5 {[%clk 0:12:03]} 11. Nd4 {[%clk 0:11:40]}  Qf6 {[%clk 0:09:00]} 12. Qe2 {[%clk 0:10:53]}  Be5 {[%clk 0:08:38]} 13. O-O-O {[%clk 0:09:34]}  Bxd4 {[%clk 0:08:11]} 14. exd4 {[%clk 0:09:40]}  Qxd4 {[%clk 0:08:20]} 15. f3 {[%clk 0:07:17]}  Qe3+ {[%clk 0:07:20]} 16. Rd2 {[%clk 0:06:34]}  Qxe2 {[%clk 0:06:51]} 17. Rxe2 {[%clk 0:06:42]}  Ngf6 {[%clk 0:06:56]} 18. h6 {[%clk 0:06:51]}  O-O-O {[%clk 0:06:35]} 19. hxg7 {[%clk 0:07:00]}  Rhg8 {[%clk 0:06:45]} 20. Rg2 {[%clk 0:07:10]}  Bg6 {[%clk 0:05:41]} 21. f4 {[%clk 0:07:18]}  Ne8 {[%clk 0:05:41]} 22. Nb5 {[%clk 0:03:37]}  a6 {[%clk 0:05:10]} 23. Nd4 {[%clk 0:03:46]}  Nxg7 {[%clk 0:05:05]} 24. Rgh2 {[%clk 0:03:50]}  Rde8 {[%clk 0:02:40]} 25. Nf3 {[%clk 0:03:49]}  f6 {[%clk 0:02:16]} 26. Be2 {[%clk 0:03:19]}  Nf5 {[%clk 0:02:15]} 27. Rh3 {[%clk 0:03:24]}  e5 {[%clk 0:02:14]} 28. fxe5 {[%clk 0:03:29]}  fxe5 {[%clk 0:02:18]} 29. Ng5 {[%clk 0:03:37]}  h6 {[%clk 0:02:22]} 30. Nf3 {[%clk 0:03:42]}  Bh7 {[%clk 0:01:56]} 31. Bc3 {[%clk 0:02:47]}  Ng3 {[%clk 0:01:37]} 32. R1h2 {[%clk 0:02:33]}  Bf5 {[%clk 0:01:31]} 33. Rxh6 {[%clk 0:01:53]}  Nxe2+ {[%clk 0:01:39]} 34. Rxe2 {[%clk 0:02:03]}  Bg4 {[%clk 0:01:49]} 35. Re3 {[%clk 0:01:41]}  d4 {[%clk 0:01:27]} 36. Nxd4 {[%clk 0:01:50]}  exd4 {[%clk 0:01:36]} 37. Rxe8+ {[%clk 0:02:00]}  Rxe8 {[%clk 0:01:44]} 38. Bxd4 {[%clk 0:02:10]}  b6 {[%clk 0:01:47]} 39. Rg6 {[%clk 0:02:16]}  Bf3 {[%clk 0:01:51]} 40. Rg3 {[%clk 0:02:24]}  Bc6 {[%clk 0:01:56]} 41. a4 {[%clk 0:02:32]}  Kb7 {[%clk 0:02:05]} 42. Re3 {[%clk 0:02:37]}  Rxe3 {[%clk 0:01:35]} 43. Bxe3 {[%clk 0:02:47]}  Nf6 {[%clk 0:01:45]} 44. Kb2 {[%clk 0:02:55]}  Bf3 {[%clk 0:01:49]} 45. Bd4 {[%clk 0:03:03]}  Nd5 {[%clk 0:01:57]} 46. Kc1 {[%clk 0:03:09]}  Kc6 {[%clk 0:01:55]} 47. Kd2 {[%clk 0:03:18]}  Bh5 {[%clk 0:01:57]} 48. Bf2 {[%clk 0:03:27]}  Nf4 {[%clk 0:01:26]} 49. Bg3 {[%clk 0:03:35]}  Ne6 {[%clk 0:01:36]} 50. Bf2 {[%clk 0:03:43]}  Kd5 {[%clk 0:01:45]} 51. Bg3 {[%clk 0:03:52]}  Kc5 {[%clk 0:01:43]} 52. Kc3 {[%clk 0:03:59]}  Bg4 {[%clk 0:01:44]} 53. Bf2+ {[%clk 0:04:08]}  Kd5 {[%clk 0:01:53]} 54. Bg3 {[%clk 0:04:18]}  c6 {[%clk 0:01:19]} 55. Bf2 {[%clk 0:04:25]}  b5 {[%clk 0:00:28]} 56. axb5 {[%clk 0:04:35]}  cxb5 {[%clk 0:00:37]} 57. Kb4 {[%clk 0:04:40]}  Bd1 {[%clk 0:00:19]} 58. c4+ {[%clk 0:04:47]}  Kc6 {[%clk 0:00:28]} 59. d4 {[%clk 0:04:56]}  Nf4 {[%clk 0:00:32]} 60. d5+ {[%clk 0:05:05]}  Kb7 {[%clk 0:00:33]} 61. Be3 {[%clk 0:04:51]}  Nd3+ {[%clk 0:00:32]} 62. Kc3 {[%clk 0:05:00]}  Ne5 {[%clk 0:00:40]} 63. Bd4 {[%clk 0:05:04]}  Nf3 {[%clk 0:00:23]} 64. Be3 {[%clk 0:05:13]}  Nh4 {[%clk 0:00:21]} 65. c5 {[%clk 0:05:22]}  Bf3 {[%clk 0:00:26]} 66. c6+ {[%clk 0:05:27]}  Kc8 {[%clk 0:00:32]} 67. Kb4 {[%clk 0:04:38]}  Nf5 {[%clk 0:00:35]} 68. Bf4 {[%clk 0:04:36]}  Bxd5 {[%clk 0:00:37]} 69. Ka5 {[%clk 0:04:45]}  Bxc6 {[%clk 0:00:26]} 70. Kxa6 {[%clk 0:04:55]}  Nd4 {[%clk 0:00:32]} 71. Kb6 {[%clk 0:04:37]}  Bd7 {[%clk 0:00:30]} 72. b4 {[%clk 0:04:38]}  Kd8 {[%clk 0:00:34]} 73. Be3 {[%clk 0:04:42]}  Nc2 {[%clk 0:00:40]} 74. Bc5 {[%clk 0:04:45]}  Ne1 {[%clk 0:00:45]} 75. Bd6 {[%clk 0:04:08]}  Nd3 {[%clk 0:00:49]} 76. Kb7 {[%clk 0:04:13]}  Be8 {[%clk 0:00:37]} 77. Bf8 {[%clk 0:03:30]}  Kd7 {[%clk 0:00:40]} 78. Kb6 {[%clk 0:02:06]}  Ke6 {[%clk 0:00:48]} 0-1


[Site "http://www.chessbomb.com"]

[Event "Meltwater Champions Chess Tour 2022: Chessable Masters | Prelims"]
[White "Mishra, Abhimanyu"]
[Black "Tari, Aryan"]
[WhiteFideId "30920019"]
[BlackFideId "1510045"]
[WhiteElo "2524"]
[BlackElo "2531"]
[Result "0-1"]
[Round "11"]
[TimeControl "900+10"]
[Date "2022.05.21"]
[WhiteClock "0:01:03"]
[BlackClock "0:03:33"]

1. e4 {[%clk 0:15:20]}  c6 {[%clk 0:15:20]} 2. d4 {[%clk 0:15:27]}  d5 {[%clk 0:15:27]} 3. e5 {[%clk 0:15:35]}  Bf5 {[%clk 0:15:21]} 4. Nd2 {[%clk 0:15:43]}  e6 {[%clk 0:15:27]} 5. Nb3 {[%clk 0:15:50]}  Nd7 {[%clk 0:15:37]} 6. Nf3 {[%clk 0:15:58]}  Qc7 {[%clk 0:15:45]} 7. Be2 {[%clk 0:16:07]}  f6 {[%clk 0:15:53]} 8. O-O {[%clk 0:12:32]}  fxe5 {[%clk 0:15:59]} 9. dxe5 {[%clk 0:12:31]}  Nxe5 {[%clk 0:16:02]} 10. Nfd4 {[%clk 0:11:30]}  Nf6 {[%clk 0:16:08]} 11. Bg5 {[%clk 0:09:36]}  Ne4 {[%clk 0:14:04]} 12. Be3 {[%clk 0:09:13]}  Bd6 {[%clk 0:12:37]} 13. g4 {[%clk 0:08:02]}  Bg6 {[%clk 0:12:39]} 14. f4 {[%clk 0:06:50]}  Bf7 {[%clk 0:09:10]} 15. fxe5 {[%clk 0:05:52]}  Bxe5 {[%clk 0:09:20]} 16. Rf3 {[%clk 0:05:17]}  Bxh2+ {[%clk 0:08:53]} 17. Kg2 {[%clk 0:05:12]}  Be5 {[%clk 0:07:53]} 18. Qf1 {[%clk 0:04:14]}  O-O {[%clk 0:07:10]} 19. Bd3 {[%clk 0:03:49]}  Qe7 {[%clk 0:05:02]} 20. Bxe4 {[%clk 0:02:49]}  dxe4 {[%clk 0:05:12]} 21. Rh3 {[%clk 0:02:50]}  c5 {[%clk 0:04:42]} 22. Ne2 {[%clk 0:02:13]}  Bg6 {[%clk 0:04:29]} 23. Qe1 {[%clk 0:02:02]}  Rf3 {[%clk 0:03:49]} 24. Ng1 {[%clk 0:01:01]}  Rf7 {[%clk 0:03:32]} 25. Qe2 {[%clk 0:00:33]}  b6 {[%clk 0:03:23]} 26. c3 {[%clk 0:00:30]}  Raf8 {[%clk 0:03:20]} 27. Nd2 {[%clk 0:00:33]}  Bf4 {[%clk 0:03:06]} 28. Bxf4 {[%clk 0:00:18]}  Rxf4 {[%clk 0:03:16]} 29. Rf1 {[%clk 0:00:19]}  e5 {[%clk 0:03:25]} 30. Rg3 {[%clk 0:00:17]}  Qb7 {[%clk 0:02:13]} 31. Qe3 {[%clk 0:00:14]}  Rd8 {[%clk 0:02:18]} 32. Nh3 {[%clk 0:00:13]}  Rxd2+ {[%clk 0:02:24]} 33. Kg1 {[%clk 0:00:19]}  Rxf1+ {[%clk 0:02:13]} 34. Kxf1 {[%clk 0:00:28]}  Qd7 {[%clk 0:02:21]} 35. Nf2 {[%clk 0:00:30]}  Rxb2 {[%clk 0:02:25]} 36. Rg1 {[%clk 0:00:31]}  Qd2 {[%clk 0:02:31]} 37. Rg3 {[%clk 0:00:18]}  Qxe3 {[%clk 0:02:37]} 38. Rxe3 {[%clk 0:00:28]}  Rxa2 {[%clk 0:02:46]} 39. Nxe4 {[%clk 0:00:33]}  Bxe4 {[%clk 0:02:54]} 40. Rxe4 {[%clk 0:00:43]}  Rc2 {[%clk 0:02:58]} 41. c4 {[%clk 0:00:47]}  h6 {[%clk 0:03:06]} 42. Ke1 {[%clk 0:00:50]}  a5 {[%clk 0:03:15]} 43. Kd1 {[%clk 0:00:59]}  Rg2 {[%clk 0:03:24]} 44. Rxe5 {[%clk 0:01:03]}  Rxg4 {[%clk 0:03:33]} 0-1


[Site "http://www.chessbomb.com"]

[Event "Meltwater Champions Chess Tour 2022: Chessable Masters | Prelims"]
[White "Shankland, Sam"]
[Black "Giri, Anish"]
[WhiteFideId "2004887"]
[BlackFideId "24116068"]
[WhiteElo "2616"]
[BlackElo "2730"]
[Result "1/2-1/2"]
[Round "11"]
[TimeControl "900+10"]
[Date "2022.05.21"]
[WhiteClock "0:01:36"]
[BlackClock "0:01:06"]

1. c4 {[%clk 0:15:20]}  Nf6 {[%clk 0:15:20]} 2. Nc3 {[%clk 0:15:27]}  c5 {[%clk 0:15:26]} 3. Nf3 {[%clk 0:15:36]}  e6 {[%clk 0:15:34]} 4. e3 {[%clk 0:15:20]}  Nc6 {[%clk 0:15:42]} 5. d4 {[%clk 0:15:26]}  d5 {[%clk 0:15:51]} 6. cxd5 {[%clk 0:15:34]}  exd5 {[%clk 0:16:00]} 7. Bb5 {[%clk 0:15:42]}  cxd4 {[%clk 0:16:10]} 8. Nxd4 {[%clk 0:15:51]}  Bd7 {[%clk 0:16:18]} 9. O-O {[%clk 0:16:00]}  Bd6 {[%clk 0:16:20]} 10. Nf3 {[%clk 0:16:07]}  Bg4 {[%clk 0:16:15]} 11. h3 {[%clk 0:16:12]}  Bh5 {[%clk 0:16:24]} 12. Be2 {[%clk 0:16:15]}  O-O {[%clk 0:16:09]} 13. b3 {[%clk 0:16:24]}  a6 {[%clk 0:15:39]} 14. Bb2 {[%clk 0:16:30]}  Re8 {[%clk 0:15:48]} 15. Rc1 {[%clk 0:16:38]}  Bc7 {[%clk 0:14:39]} 16. Nh4 {[%clk 0:14:13]}  Bg6 {[%clk 0:14:47]} 17. Nxg6 {[%clk 0:12:45]}  hxg6 {[%clk 0:14:57]} 18. Bf3 {[%clk 0:12:54]}  Be5 {[%clk 0:08:36]} 19. Na4 {[%clk 0:11:40]}  Bxb2 {[%clk 0:08:17]} 20. Nxb2 {[%clk 0:11:50]}  Qd6 {[%clk 0:07:55]} 21. Nd3 {[%clk 0:11:24]}  Rad8 {[%clk 0:07:22]} 22. Qc2 {[%clk 0:11:20]}  Rc8 {[%clk 0:05:48]} 23. Qb2 {[%clk 0:10:55]}  Ne7 {[%clk 0:05:37]} 24. Nf4 {[%clk 0:10:31]}  g5 {[%clk 0:05:04]} 25. Ne2 {[%clk 0:10:10]}  Ng6 {[%clk 0:05:05]} 26. Nd4 {[%clk 0:09:40]}  Ne5 {[%clk 0:05:13]} 27. Be2 {[%clk 0:08:54]}  g6 {[%clk 0:05:21]} 28. Nf3 {[%clk 0:08:22]}  Nxf3+ {[%clk 0:05:16]} 29. Bxf3 {[%clk 0:08:31]}  Ne4 {[%clk 0:04:14]} 30. Qd4 {[%clk 0:07:46]}  Rc6 {[%clk 0:03:02]} 31. Rxc6 {[%clk 0:06:50]}  bxc6 {[%clk 0:02:48]} 32. Rc1 {[%clk 0:06:47]}  c5 {[%clk 0:02:34]} 33. Qa4 {[%clk 0:06:10]}  Nf6 {[%clk 0:01:47]} 34. Qa5 {[%clk 0:05:32]}  Rc8 {[%clk 0:01:55]} 35. Rd1 {[%clk 0:05:06]}  Qe6 {[%clk 0:01:44]} 36. Qd2 {[%clk 0:03:54]}  Rd8 {[%clk 0:01:08]} 37. Rc1 {[%clk 0:03:23]}  Qd6 {[%clk 0:00:56]} 38. Qd3 {[%clk 0:02:41]}  Rc8 {[%clk 0:00:38]} 39. g3 {[%clk 0:02:12]}  Rc7 {[%clk 0:00:27]} 40. Kg2 {[%clk 0:02:13]}  Qe6 {[%clk 0:00:34]} 41. b4 {[%clk 0:01:52]}  c4 {[%clk 0:00:43]} 42. Qd4 {[%clk 0:02:01]}  Ne4 {[%clk 0:00:43]} 43. Bxe4 {[%clk 0:01:32]}  Qxe4+ {[%clk 0:00:51]} 44. Qxe4 {[%clk 0:01:41]}  dxe4 {[%clk 0:01:01]} 45. Kf1 {[%clk 0:01:51]}  f5 {[%clk 0:00:32]} 46. Ke2 {[%clk 0:01:57]}  c3 {[%clk 0:00:37]} 47. a4 {[%clk 0:01:02]}  Rc4 {[%clk 0:00:39]} 48. b5 {[%clk 0:01:11]}  Rxa4 {[%clk 0:00:42]} 49. bxa6 {[%clk 0:01:20]}  Rxa6 {[%clk 0:00:49]} 50. Rxc3 {[%clk 0:01:30]}  Kf7 {[%clk 0:00:57]} 51. Kf1 {[%clk 0:01:36]}  Kf6 {[%clk 0:01:06]} 1/2-1/2


[Site "http://www.chessbomb.com"]